fUST/lending_fUST_20250815
["ID","MTS","AMOUNT","RATE_DAILY","PERIOD"]
[379305257,1755243033463,-500.0,0.00021202,2]
[379305258,1755243033472,-500.0,0.00021202,2]
[379305259,1755243033481,-215.74754999,0.00021202,2]
[379305260,1755243033491,-500.0,0.00021202,2]
[379305261,1755243033501,-500.0,0.00021202,2]
[379305262,1755243033510,-500.0,0.00021202,2]
[379305263,1755243033520,-599.84754514,0.00021202,2]
[379305264,1755243033530,-500.0,0.00021202,2]
[379305265,1755243033540,-500.0,0.00021202,2]
[379305266,1755243033549,-500.0,0.00021202,2]
[379305267,1755243033559,-500.0,0.00021202,2]
[379305268,1755243033568,-500.0,0.00021202,2]
[379305269,1755243033578,-500.0,0.00021202,2]
[379305270,1755243033588,-301.07818259,0.00021202,2]
[379305271,1755243033597,-500.0,0.00021202,2]
[379305272,1755243033607,-220.36036467,0.00021202,2]
[379305273,1755243033617,-500.0,0.00021202,2]
[379305274,1755243033627,-500.0,0.00021202,2]
[379305275,1755243033637,-500.0,0.00021202,2]
[379305276,1755243033647,-500.0,0.00021202,2]
[379305277,1755243033657,-500.0,0.00021202,2]
[379305278,1755243033667,-500.0,0.00021202,2]
[379305279,1755243033676,-500.0,0.00021202,2]
[379305280,1755243033686,-231.46420976,0.00021202,2]
[379305281,1755243033695,-160.58416346,0.00021202,2]
[379305282,1755243033705,-500.0,0.00021202,2]
[379305283,1755243033715,-500.0,0.00021202,2]
[379305284,1755243033724,-500.0,0.00021202,2]
[379305285,1755243033734,-500.0,0.00021202,2]
[379305286,1755243033744,-500.0,0.00021202,2]
[379305287,1755243033755,-500.0,0.00021202,2]
[379305288,1755243033764,-430.58420488,0.00021202,2]
[379305289,1755243033774,-500.0,0.00021202,2]
[379305290,1755243033784,-500.0,0.00021202,2]
[379305291,1755243033794,-500.0,0.00021202,2]
[379305292,1755243033804,-500.0,0.00021202,2]
[379305293,1755243033814,-500.0,0.00021202,2]
[379305294,1755243033824,-463.08031108,0.00021202,2]
[379305295,1755243033834,-500.0,0.00021202,2]
[379305296,1755243033844,-500.0,0.00021202,2]
[379305297,1755243033853,-500.0,0.00021202,2]
[379305298,1755243033863,-500.0,0.00021202,2]
[379305299,1755243033872,-151.0,0.00021202,2]
[379305300,1755243033881,-151.0,0.00021202,2]
[379305301,1755243033891,-154.595287,0.00021205,2]
[379305302,1755243033901,-154.859578,0.00021205,2]
[379305303,1755243033910,-151.0,0.00021205,2]
[379305304,1755243033920,-151.0,0.00021205,2]
[379305305,1755243033929,-151.0,0.00021205,2]
[379305306,1755243033939,-151.0,0.00021205,2]
[379305307,1755243033948,-151.0,0.00021206,2]
[379305308,1755243033957,-151.0,0.00021206,2]
[379305309,1755243033967,-151.0,0.00021207,2]
[379305310,1755243033976,-151.0,0.00021208,2]
[379305311,1755243033985,-151.0,0.00021208,2]
[379305312,1755243033995,-151.0,0.00021208,2]
[379305313,1755243034005,-151.0,0.00021208,2]
[379305314,1755243034014,-151.0,0.00021208,2]
[379305315,1755243034023,-151.0,0.00021208,2]
[379305316,1755243034033,-151.0,0.00021208,2]
[379305317,1755243034043,-151.0,0.00021208,2]
[379305318,1755243034052,-169.897033,0.00021208,2]
[379305319,1755243034062,-169.897033,0.00021208,2]
[379305320,1755243034072,-169.897033,0.00021208,2]
[379305321,1755243034081,-169.897033,0.00021208,2]
[379305322,1755243034091,-153.324223,0.00021208,2]
[379305323,1755243034107,-151.0,0.00021208,2]
[379305324,1755243034117,-151.0,0.00021208,2]
[379305325,1755243034127,-151.0,0.00021208,2]
[379305326,1755243034137,-151.0,0.00021208,2]
[379305327,1755243034147,-151.0,0.00021208,2]
[379305328,1755243034157,-151.0,0.00021208,2]
[379305329,1755243034167,-151.0,0.00021208,2]
[379305330,1755243034182,-460.0,0.00021208,2]
[379305331,1755243034192,-151.0,0.00021208,2]
[379305332,1755243034202,-151.0,0.00021208,2]
[379305333,1755243034213,-273.984172,0.00021208,2]
[379305334,1755243034223,-151.0,0.00021208,2]
[379305335,1755243034232,-1000.0,0.00021208,2]
[379305336,1755243034242,-470.041407,0.00021208,2]
[379305337,1755243034253,-151.0,0.00021209,2]
[379305338,1755243034262,-151.0,0.00021209,2]
[379305339,1755243034271,-151.0,0.00021209,2]
[379305340,1755243034281,-151.0,0.00021209,2]
[379305341,1755243034290,-151.0,0.00021209,2]
[379305342,1755243034300,-151.0,0.00021209,2]
[379305343,1755243034309,-151.0,0.00021209,2]
[379305344,1755243034318,-151.0,0.00021209,2]
[379305345,1755243034327,-151.0,0.00021209,2]
[379305346,1755243034336,-151.0,0.00021209,2]
[379305347,1755243034345,-17842.522448,0.00021209,2]
[379305348,1755243034355,-2264.10087163,0.00021209,2]
[379305349,1755243034364,-151.0,0.00021239,2]
[379305350,1755243034374,-168.0,0.0002124,2]
[379305351,1755243034385,-1150.35,0.00021255,10]
[379305352,1755243034397,-168.0,0.00021258,2]
[379305353,1755243034406,-168.0,0.00021263,2]
[379305354,1755243034417,-1488.83,0.00021263,10]
[379305355,1755243034432,-1362.63446034,0.00021265,2]
[379305356,1755243034441,-2143.91,0.00021272,10]
[379305357,1755243034451,-1779.52836857,0.00021272,10]
[379305384,1755243038684,-168.91105518,0.00018231,2]
[379305386,1755243038693,-245.24,0.00019178,2]
[379305388,1755243038702,-21.35969766,0.00020729,2]
[379305390,1755243038713,-1029.90528088,0.00020729,2]
[379305393,1755243038731,-71.71585779,0.00020729,2]
[379305395,1755243038740,-151.0,0.00021209,2]
[379305397,1755243038749,-151.0,0.00021209,2]
[379305399,1755243038758,-151.0,0.00021209,2]
[379305401,1755243038767,-151.0,0.00021209,2]
[379305403,1755243038776,-151.0,0.00021209,2]
[379305405,1755243038786,-151.0,0.00021209,2]
[379305407,1755243038795,-502.20234412,0.00021273,2]
[379305409,1755243038805,-500.0,0.00021273,2]
[379305411,1755243038814,-500.0,0.00021273,2]
[379305413,1755243038823,-501.42710142,0.00021273,2]
[379305415,1755243038832,-364.86002102,0.00021273,2]
[379305417,1755243038841,-503.14994158,0.00021273,2]
[379305419,1755243038850,-500.0,0.00021273,2]
[379305421,1755243038859,-500.0,0.00021273,2]
[379305423,1755243038869,-500.15391106,0.00021273,2]
[379305425,1755243038878,-500.0,0.00021273,2]
[379305426,1755243038888,-500.0,0.00021273,2]
[379305427,1755243038897,-500.0,0.00021273,2]
[379305428,1755243038906,-500.0,0.00021273,2]
[379305429,1755243038915,-502.19094867,0.00021273,2]
[379305430,1755243038925,-502.53093704,0.00021273,2]
[379305431,1755243038934,-160.54487669,0.00021273,2]
[379305432,1755243038943,-151.0,0.00021281,2]
[379305433,1755243038952,-502.25002578,0.00021282,2]
[379305434,1755243038962,-529.07721688,0.00021282,2]
[379305435,1755243038971,-500.0,0.00021282,2]
[379305436,1755243038980,-241.79460553,0.00021282,2]
[379305437,1755243038989,-502.25913017,0.00021282,2]
[379305438,1755243038998,-500.0,0.00021282,2]
[379305439,1755243039007,-500.0,0.00021282,2]
[379305440,1755243039017,-503.8623459,0.00021282,2]
[379305441,1755243039027,-502.02374365,0.00021282,2]
[379305442,1755243039035,-151.0,0.00021287,2]
[379305443,1755243039045,-150.0,0.000213,2]
[379305444,1755243039053,-158.790613,0.00021328,2]
[379305445,1755243039063,-168.0,0.00021383,2]
[379305446,1755243039073,-151.0,0.00021448,2]
[379305447,1755243039082,-2540.92937679,0.00021448,2]
[379305448,1755243039091,-432.0,0.00021452,2]
[379305449,1755243039104,-1000.0,0.00021467,2]
[379305450,1755243039112,-200.0,0.00021476,20]
[379305451,1755243039121,-200.0,0.00021476,20]
[379305452,1755243039131,-200.0,0.00021476,20]
[379305453,1755243039142,-200.0,0.00021476,20]
[379305454,1755243039150,-200.0,0.00021476,20]
[379305455,1755243039161,-200.0,0.00021476,20]
[379305456,1755243039171,-200.0,0.00021476,20]
[379305457,1755243039180,-280.0,0.00021476,20]
[379305458,1755243039189,-181.310662,0.00021478,2]
[379305459,1755243039199,-460.0,0.00021482,2]
[379305460,1755243039208,-151.0,0.00021561,2]
[379305461,1755243039218,-151.70093298,0.00021561,2]
[379305462,1755243039227,-152.68937993,0.00021561,2]
[379305463,1755243039236,-154.02715684,0.00021561,2]
[379305464,1755243039246,-153.08562722,0.00021561,2]
[379305465,1755243039256,-151.0,0.00021561,2]
[379305466,1755243039266,-151.77156801,0.00021561,2]
[379305467,1755243039275,-200.60318908,0.00021561,2]
[379305468,1755243039284,-254.53894068,0.00021561,2]
[379305469,1755243039294,-151.0,0.00021561,2]
[379305470,1755243039304,-261.012644,0.00021561,2]
[379305471,1755243039313,-151.0,0.00021561,2]
[379305472,1755243039322,-151.0,0.00021561,2]
[379305473,1755243039332,-243.904813,0.00021561,2]
[379305474,1755243039342,-151.0,0.00021561,2]
[379305475,1755243039351,-151.0,0.00021561,2]
[379305476,1755243039473,-168.0,0.00021573,2]
[379305477,1755243039486,-1594.71294729,0.00021597,2]
[379305478,1755243039496,-168.0,0.00021603,2]
[379305479,1755243039505,-153.949913,0.00021631,2]
[379305480,1755243039514,-151.0,0.00021631,2]
[379305481,1755243039524,-151.0,0.00021631,2]
[379305482,1755243039533,-151.0,0.00021631,2]
[379305483,1755243039543,-151.0,0.00021631,2]
[379305484,1755243039553,-151.0,0.00021631,2]
[379305485,1755243039562,-151.0,0.00021631,2]
[379305486,1755243039571,-151.0,0.00021631,2]
[379305487,1755243039580,-151.0,0.00021631,2]
[379305488,1755243039590,-152.075213,0.0002168,2]
[379305489,1755243039599,-1000.0,0.00021726,2]
[379305490,1755243039609,-432.0,0.00021726,2]
[379305491,1755243039618,-151.0,0.00021726,2]
[379305492,1755243039628,-460.0,0.00021756,2]
[379305493,1755243039637,-1000.0,0.00021821,2]
[379305494,1755243039646,-1000.0,0.00021821,2]
[379305495,1755243039656,-240.15173798,0.00021821,2]
[379305496,1755243039666,-1000.0,0.00021821,2]
[379305497,1755243039675,-1000.0,0.00021821,2]
[379305498,1755243039684,-1000.0,0.00021821,2]
[379305499,1755243039693,-1000.0,0.00021821,2]
[379305500,1755243039702,-1000.0,0.00021821,2]
[379305501,1755243039712,-620.9937377,0.0002183,2]
[379305502,1755243039721,-1000.0,0.0002183,2]
[379305503,1755243039731,-1000.0,0.0002183,2]
[379305504,1755243039740,-257.10709641,0.00021835,2]
[379305505,1755243039749,-219.682016,0.00021871,2]
[379305506,1755243039759,-500.0,0.00021873,2]
[379305507,1755243039770,-500.0,0.00021873,2]
[379305508,1755243039780,-504.6401881,0.00021873,2]
[379305509,1755243039790,-500.0,0.00021873,2]
[379305510,1755243039801,-500.0,0.00021873,2]
[379305511,1755243039811,-500.0,0.00021873,2]
[379305512,1755243039821,-500.0,0.00021873,2]
[379305513,1755243039831,-500.0,0.00021873,2]
[379305514,1755243039840,-514.0505241,0.00021873,2]
[379305515,1755243039850,-500.0,0.00021873,2]
[379305516,1755243039860,-500.0,0.00021873,2]
[379305517,1755243039870,-500.0,0.00021873,2]
[379305518,1755243039879,-500.0,0.00021873,2]
[379305519,1755243039889,-500.0,0.00021873,2]
[379305520,1755243039899,-500.0,0.00021873,2]
[379305521,1755243039908,-500.0,0.00021873,2]
[379305522,1755243039918,-214.558956,0.00021873,2]
[379305523,1755243039927,-151.0,0.00021873,2]
[379305524,1755243039937,-151.0,0.00021873,2]
[379305525,1755243039947,-71039.59290467,0.00021873,2]
[379305526,1755243039956,-160.0,0.00021917,2]
[379305527,1755243039966,-151.0,0.00021918,2]
[379305528,1755243039976,-151.0,0.00021918,2]
[379305529,1755243039985,-151.0,0.00021918,2]
[379305530,1755243039995,-151.0,0.00021918,2]
[379305531,1755243040005,-151.0,0.00021918,2]
[379305532,1755243040017,-151.0,0.00021918,2]
[379305533,1755243040027,-151.0,0.00021918,2]
[379305534,1755243040036,-151.0,0.00021918,2]
[379305535,1755243040046,-151.0,0.00021918,2]
[379305536,1755243040056,-151.0,0.00021918,2]
[379305537,1755243040065,-151.0,0.00021918,2]
[379305539,1755243040074,-151.0,0.00021918,2]
[379305540,1755243040084,-200.0,0.00021918,2]
[379305541,1755243040095,-2540.92937679,0.00021965,2]
[379305542,1755243040105,-151.0,0.00021965,7]
[379305543,1755243040114,-151.0,0.00021965,7]
[379305544,1755243040123,-169.897033,0.00021965,7]
[379305545,1755243040132,-169.897033,0.00021965,7]
[379305546,1755243040142,-432.0,0.00022,2]
[379305548,1755243040151,-179.0,0.00022,2]
[379305549,1755243040160,-1500.0,0.00022015,2]
[379305551,1755243040170,-460.0,0.0002203,2]
[379305552,1755243040179,-931.4,0.00022068,2]
[379305554,1755243040188,-151.774557,0.0002208,7]
[379305556,1755243040198,-161.646,0.00022082,2]
[379305557,1755243040207,-151.0,0.00022085,7]
[379305558,1755243040216,-151.0,0.00022085,7]
[379305559,1755243040226,-151.0,0.00022085,7]
[379305560,1755243040235,-1594.71294729,0.00022087,2]
[379305561,1755243040244,-972.0,0.00022094,2]
[379305562,1755243040255,-2152.0,0.00022094,2]
[379305563,1755243040265,-636.0,0.00022094,2]
[379305564,1755243040274,-551.731,0.00022094,2]
[379305565,1755243040284,-151.0,0.00022101,7]
[379305566,1755243040294,-151.0,0.00022101,7]
[379305567,1755243040303,-151.0,0.00022101,7]
[379305568,1755243040313,-151.0,0.00022101,7]
[379305569,1755243040323,-162.90863974,0.00022164,2]
[379305570,1755243040333,-200.0,0.0002223,4]
[379305571,1755243040343,-151.0,0.00022247,7]
[379305572,1755243040354,-247.359224,0.00022247,7]
[379305573,1755243040363,-169.897033,0.00022247,7]
[379305574,1755243040373,-169.897033,0.00022247,7]
[379305575,1755243040382,-168.0,0.00022247,2]
[379305576,1755243040392,-1500.0,0.00022274,2]
[379305577,1755243040402,-432.0,0.00022274,2]
[379305578,1755243040411,-268.0327449,0.00022304,2]
[379305579,1755243040420,-1500.0,0.00022368,2]
[379305580,1755243040430,-506.19784,0.00022368,2]
[379305581,1755243040440,-1121.19201182,0.00022368,2]
[379305582,1755243040449,-1004.34589926,0.00022368,2]
[379305583,1755243040459,-1500.0,0.00022368,2]
[379305584,1755243040468,-1500.0,0.00022368,2]
[379305585,1755243040478,-1500.0,0.00022368,2]
[379305586,1755243040487,-1500.0,0.00022378,2]
[379305587,1755243040496,-508.8215961,0.00022378,2]
[379305588,1755243040506,-166.5,0.0002239,2]
[379305589,1755243040516,-501.82218779,0.00022421,2]
[379305590,1755243040525,-504.43596697,0.00022421,2]
[379305591,1755243040535,-1000.97478275,0.00022421,2]
[379305592,1755243040545,-1000.0,0.00022421,2]
[379305593,1755243040554,-501.47633813,0.00022421,2]
[379305594,1755243040563,-1000.0,0.00022421,2]
[379305595,1755243040573,-1000.98046426,0.00022421,2]
[379305596,1755243040582,-1000.0,0.00022421,2]
[379305597,1755243040592,-1000.0,0.00022421,2]
[379305598,1755243040603,-504.12882697,0.00022421,2]
[379305599,1755243040612,-501.20997397,0.00022421,2]
[379305600,1755243040622,-1000.0,0.00022421,2]
[379305601,1755243040632,-600.32016496,0.00022421,2]
[379305602,1755243040641,-151.0,0.00022423,7]
[379305603,1755243040651,-203.77361,0.00022423,7]
[379305604,1755243040661,-151.0,0.00022423,7]
[379305605,1755243040670,-151.0,0.00022423,7]
[379305606,1755243040680,-169.897033,0.00022423,7]
[379305607,1755243040690,-169.897033,0.00022423,7]
[379305608,1755243040699,-151.0,0.00022423,7]
[379305609,1755243040709,-151.0,0.00022423,7]
[379305610,1755243040719,-151.0,0.00022424,7]
[379305611,1755243040729,-151.0,0.00022424,7]
[379305613,1755243040739,-151.0,0.00022424,7]
[379305614,1755243040748,-169.897033,0.00022424,7]
[379305615,1755243040758,-169.897033,0.00022424,7]
[379305616,1755243040769,-151.0,0.00022424,7]
[379305617,1755243040779,-156.08233879,0.00022424,7]
[379305618,1755243040788,-151.0,0.00022424,7]
[379305619,1755243040798,-151.0,0.00022424,7]
[379305621,1755243040808,-260.0,0.00022465,2]
[379305623,1755243040817,-162.90863974,0.00022466,2]
[379305624,1755243040826,-2540.92937679,0.00022481,2]
[379305626,1755243040836,-25716.10602324,0.00022524,2]
[379305627,1755243040845,-151.0,0.00022524,7]
[379305628,1755243040855,-291.822508,0.00022524,7]
[379305629,1755243040864,-151.0,0.00022524,7]
[379305630,1755243040874,-151.0,0.00022524,7]
[379305631,1755243040883,-151.0,0.00022524,7]
[379305632,1755243040893,-169.897033,0.00022524,7]
[379305633,1755243040903,-169.897033,0.00022524,7]
[379305634,1755243040913,-151.0,0.00022524,7]
[379305635,1755243040922,-151.0,0.00022524,7]
[379305636,1755243040931,-151.0,0.00022524,7]
[379305637,1755243040941,-432.0,0.00022548,2]
[379305638,1755243040950,-2000.0,0.00022563,2]
[379305639,1755243040960,-500.0,0.00022573,2]
[379305640,1755243040969,-500.0,0.00022573,2]
[379305641,1755243040978,-500.0,0.00022573,2]
[379305642,1755243040988,-500.0,0.00022573,2]
[379305643,1755243040997,-500.0,0.00022573,2]
[379305644,1755243041007,-1594.71294729,0.00022576,2]
[379305645,1755243041016,-151.0,0.00022578,2]
[379305646,1755243041026,-5130.57016129,0.00022578,2]
[379305647,1755243041035,-158.46101566,0.00022603,2]
[379305648,1755243041045,-168.0,0.0002262,2]
[379305649,1755243041054,-168.0,0.00022635,2]
[379305650,1755243041064,-162.90863974,0.0002274,2]
[379305651,1755243041073,-587.0,0.00022773,2]
[379305652,1755243041083,-168.0,0.00022798,2]
[379305653,1755243041092,-84034.55582105,0.000228,2]
[379305654,1755243041110,-44116.2554147,0.000228,2]
[379305655,1755243041121,-943.66787848,0.000228,2]
[379305656,1755243041163,-151.0,0.00021209,2]
[379305657,1755243041173,-151.0,0.00021209,2]
[379305658,1755243041183,-943.09172244,0.000228,2]
[379305659,1755243041194,-5176.95671903,0.000228,2]
[379305660,1755243041209,-360.43326267,0.000228,2]
[379305665,1755243043627,-151.0,0.00021209,2]
[379305666,1755243043637,-151.0,0.00021209,2]
[379305667,1755243043646,-151.0,0.00021209,2]
[379305668,1755243043656,-30.8809718,0.00021209,2]
[379305669,1755243043668,-120.1190282,0.00021209,2]
[379305670,1755243043676,-1122.98083633,0.00021801,2]
[379305671,1755243043686,-10920.90012647,0.000228,2]
[379305679,1755243046655,-551.4533679,0.00021201,2]
[379305680,1755243046664,-589.00868695,0.00021201,2]
[379305682,1755243046674,-191.15115163,0.00021201,2]
[379305683,1755243046684,-214.5093561,0.00021201,2]
[379305684,1755243046694,-462.28712927,0.00021201,2]
[379305685,1755243046703,-151.0,0.00021209,2]
[379305686,1755243046713,-151.0,0.00021209,2]
[379305687,1755243046722,-729.64312503,0.0002182,2]
[379305688,1755243046731,-729.64312503,0.0002182,2]
[379305689,1755243046740,-729.64312503,0.0002182,2]
[379305690,1755243046749,-729.64312503,0.0002182,2]
[379305691,1755243046759,-729.64312503,0.0002182,2]
[379305692,1755243046768,-680.75542757,0.0002182,2]
[379305695,1755243187894,855.04226098,0.00030136,120]
[379305715,1755243712058,1458.0,0.0003013,120]
[379305745,1755244031314,-464.3437538,0.00018455,2]
[379305746,1755244031335,-254.8771456,0.00019006,2]
[379305747,1755244031355,-326.32370229,0.00019061,2]
[379305801,1755244231820,-302.69733596,0.00018966,2]
[379305802,1755244231831,-127.44900643,0.00019061,2]
[379305804,1755244231840,-155.6027999,0.00019077,2]
[379305806,1755244231884,-144.3972001,0.00019077,2]
[379305808,1755244231893,-4632.94108957,0.00019078,2]
[379305810,1755244231905,-441.40323218,0.00019078,2]
[379305812,1755244231916,-2413.20718164,0.00019078,2]
[379305813,1755244231947,-30094.16265584,0.00019078,2]
[379305814,1755244231957,-302.69733596,0.00019155,2]
[379305815,1755244231966,-464.99414224,0.00019178,2]
[379305817,1755244231975,-274.77843017,0.00019178,2]
[379305818,1755244231984,-312.89219008,0.00019178,2]
[379305820,1755244231994,-5000.0,0.00019178,2]
[379305821,1755244232003,-302.69733596,0.00019345,2]
[379305822,1755244232012,-302.69733596,0.00019535,2]
[379305823,1755244232021,-53.09651461,0.00019724,2]
[379305852,1755244237921,-691.91240194,0.00019055,2]
[379305853,1755244238118,-150.32322536,0.00019055,2]
[379305854,1755244238127,-249.60082135,0.00019724,2]
[379305855,1755244238137,-500.0,0.00019873,2]
[379305856,1755244238147,-500.0,0.00019873,2]
[379305857,1755244238156,-500.0,0.00019873,2]
[379305858,1755244238165,-160.0,0.00019893,2]
[379305859,1755244238174,-215.63758983,0.00019893,2]
[379305860,1755244238183,-462.0440047,0.00019893,2]
[379305861,1755244238191,-417.15472785,0.00019894,2]
[379305862,1755244238200,-160.0,0.00019894,2]
[379305863,1755244238209,-160.0,0.00019894,2]
[379305864,1755244238219,-232.08354597,0.00019894,2]
[379305865,1755244238228,-843.47195277,0.00019894,2]
[379305866,1755244238236,-212.15211043,0.00019895,2]
[379305867,1755244238245,-212.39016848,0.00019895,2]
[379305868,1755244238254,-500.0,0.00019895,2]
[379305869,1755244238263,-415.27258888,0.00019895,2]
[379305870,1755244238272,-500.0,0.00019895,2]
[379305871,1755244238281,-500.0,0.00019895,2]
[379305872,1755244238290,-500.0,0.00019895,2]
[379305873,1755244238299,-164.9163103,0.00019895,2]
[379305874,1755244238308,-500.0,0.00019895,2]
[379305875,1755244238317,-500.0,0.00019895,2]
[379305876,1755244238327,-154.45409662,0.00019895,2]
[379305877,1755244238336,-500.0,0.00019895,2]
[379305878,1755244238345,-500.0,0.00019895,2]
[379305879,1755244238354,-500.0,0.00019895,2]
[379305880,1755244238363,-500.0,0.00019895,2]
[379305881,1755244238371,-298.32513691,0.00019895,2]
[379305882,1755244238383,-201.67486309,0.00019895,2]
[379305883,1755244238392,-443.92509655,0.00019895,2]
[379305888,1755244243825,-815.71759151,0.000189,2]
[379305889,1755244243834,-1064.40304542,0.00019796,2]
[379305890,1755244243844,-56.07490345,0.00019895,2]
[379305891,1755244243854,-500.0,0.00019895,2]
[379305892,1755244243863,-441.30803111,0.00019895,2]
[379305893,1755244243873,-500.0,0.00019895,2]
[379305894,1755244243882,-500.0,0.00019895,2]
[379305895,1755244243892,-29.06012963,0.00019895,2]
[379305898,1755244246042,-420.07697548,0.00019895,2]
[379305899,1755244246052,-500.0,0.00019895,2]
[379305900,1755244246062,-500.0,0.00019895,2]
[379305901,1755244246072,-500.0,0.00019895,2]
[379305902,1755244246082,-500.0,0.00019895,2]
[379305903,1755244246092,-500.0,0.00019895,2]
[379305904,1755244246101,-500.0,0.00019895,2]
[379305905,1755244246112,-500.0,0.00019895,2]
[379305906,1755244246123,-500.0,0.00019895,2]
[379305907,1755244246135,-500.0,0.00019895,2]
[379305908,1755244246146,-500.0,0.00019895,2]
[379305909,1755244246156,-500.0,0.00019895,2]
[379305910,1755244246166,-500.0,0.00019895,2]
[379305911,1755244246176,-500.0,0.00019895,2]
[379305912,1755244246188,-500.0,0.00019895,2]
[379305913,1755244246198,-500.0,0.00019895,2]
[379305914,1755244246207,-500.0,0.00019895,2]
[379305915,1755244246217,-305.68060982,0.00019895,2]
[379305916,1755244246227,-500.0,0.00019895,2]
[379305917,1755244246236,-500.0,0.00019895,2]
[379305918,1755244246245,-500.0,0.00019895,2]
[379305919,1755244246254,-500.0,0.00019895,2]
[379305920,1755244246264,-500.0,0.00019895,2]
[379305921,1755244246273,-500.0,0.00019895,2]
[379305922,1755244246282,-500.0,0.00019895,2]
[379305923,1755244246291,-500.0,0.00019895,2]
[379305924,1755244246301,-500.0,0.00019895,2]
[379305925,1755244246311,-500.0,0.00019895,2]
[379305926,1755244246320,-500.0,0.00019895,2]
[379305927,1755244246330,-500.0,0.00019895,2]
[379305928,1755244246339,-500.0,0.00019895,2]
[379305929,1755244246349,-500.0,0.00019895,2]
[379305930,1755244246359,-500.0,0.00019895,2]
[379305931,1755244246368,-500.0,0.00019895,2]
[379305932,1755244246378,-189.91439429,0.00019895,2]
[379305933,1755244246387,-500.0,0.00019895,2]
[379305934,1755244246397,-500.0,0.00019895,2]
[379305935,1755244246406,-500.0,0.00019895,2]
[379305936,1755244246416,-500.0,0.00019895,2]
[379305937,1755244246426,-500.0,0.00019895,2]
[379305938,1755244246435,-500.0,0.00019895,2]
[379305939,1755244246445,-500.0,0.00019895,2]
[379305940,1755244246455,-500.0,0.00019895,2]
[379305941,1755244246465,-500.0,0.00019895,2]
[379305942,1755244246475,-500.0,0.00019895,2]
[379305943,1755244246484,-500.0,0.00019895,2]
[379305944,1755244246493,-500.0,0.00019895,2]
[379305945,1755244246503,-500.0,0.00019895,2]
[379305946,1755244246518,-400.0,0.00019895,2]
[379305947,1755244246527,-500.0,0.00019895,2]
[379305948,1755244246538,-460.0,0.00019898,2]
[379305949,1755244246548,-460.0,0.00019898,2]
[379305950,1755244246559,-6455.31058075,0.000199,2]
[379305951,1755244246569,-454.04600394,0.00019914,4]
[379305952,1755244246578,-182.693992,0.0001993,2]
[379305953,1755244246590,-200.0,0.00019951,20]
[379305954,1755244246603,-200.0,0.00019951,20]
[379305955,1755244246613,-200.0,0.00019951,20]
[379305956,1755244246624,-200.0,0.00019951,20]
[379305957,1755244246634,-200.0,0.00019951,20]
[379305958,1755244246644,-200.0,0.00019951,20]
[379305959,1755244246654,-157.9,0.0002,2]
[379305960,1755244246664,-254.43249193,0.00020026,2]
[379305961,1755244246673,-427.42859696,0.00020104,4]
[379305962,1755244246683,-460.0,0.00020172,2]
[379305963,1755244246692,-1064.40304539,0.00020346,2]
[379305964,1755244246701,-842.23562724,0.00020367,2]
[379305965,1755244246711,-500.0,0.00020386,2]
[379305966,1755244246720,-6455.31058063,0.00020416,2]
[379305967,1755244246729,-1000.0,0.00020421,2]
[379305968,1755244246739,-1000.0,0.00020421,2]